[Event "Titled Tuesday Blitz February 14 Early 2023"]
[White "Sokolovsky, Yahli"]
[Black "Ramirez Allo, Eduardo"]
[WhiteFideId "2820242"]
[BlackFideId "2224178"]
[WhiteElo "2461"]
[BlackElo "2274"]
[Result "1-0"]
[Round "05"]
[TimeControl "180+2"]
[Date "2023.02.15"]
[WhiteClock "0:00:57"]
[BlackClock "0:00:06"]

1. b3 {[%clk 0:03:00]}  Nf6 {[%clk 0:02:58]} 2. Bb2 {[%clk 0:03:01]}  g6 {[%clk 0:02:58]} 3. Nf3 {[%clk 0:03:01]}  Bg7 {[%clk 0:02:58]} 4. d4 {[%clk 0:03:02]}  O-O {[%clk 0:02:58]} 5. e3 {[%clk 0:03:03]}  d6 {[%clk 0:02:59]} 6. Be2 {[%clk 0:03:02]}  Nbd7 {[%clk 0:03:00]} 7. O-O {[%clk 0:03:02]}  c5 {[%clk 0:03:00]} 8. c4 {[%clk 0:03:02]}  b6 {[%clk 0:03:01]} 9. Nc3 {[%clk 0:03:02]}  Bb7 {[%clk 0:03:02]} 10. Qd2 {[%clk 0:03:01]}  a6 {[%clk 0:03:01]} 11. Rfd1 {[%clk 0:02:59]}  Qc7 {[%clk 0:03:01]} 12. Rac1 {[%clk 0:03:00]}  Ne4 {[%clk 0:02:59]} 13. Nxe4 {[%clk 0:02:59]}  Bxe4 {[%clk 0:03:00]} 14. d5 {[%clk 0:02:59]}  Bxf3 {[%clk 0:03:00]} 15. Bxf3 {[%clk 0:02:57]}  Bxb2 {[%clk 0:02:59]} 16. Qxb2 {[%clk 0:02:58]}  Rfb8 {[%clk 0:02:58]} 17. h4 {[%clk 0:02:53]}  h5 {[%clk 0:02:55]} 18. Be2 {[%clk 0:02:30]}  b5 {[%clk 0:02:47]} 19. Qc2 {[%clk 0:02:20]}  bxc4 {[%clk 0:02:31]} 20. Bxc4 {[%clk 0:02:20]}  Rb4 {[%clk 0:02:21]} 21. Qe4 {[%clk 0:01:53]}  Ne5 {[%clk 0:02:15]} 22. f4 {[%clk 0:01:41]}  Nxc4 {[%clk 0:02:06]} 23. Rxc4 {[%clk 0:01:37]}  Rxc4 {[%clk 0:01:57]} 24. bxc4 {[%clk 0:01:38]}  Qd7 {[%clk 0:01:58]} 25. Rb1 {[%clk 0:01:37]}  Ra7 {[%clk 0:01:46]} 26. Rb8+ {[%clk 0:01:25]}  Kg7 {[%clk 0:01:44]} 27. Qb1 {[%clk 0:01:26]}  a5 {[%clk 0:01:25]} 28. Qb2+ {[%clk 0:01:18]}  f6 {[%clk 0:01:23]} 29. Qb6 {[%clk 0:01:19]}  a4 {[%clk 0:00:56]} 30. a3 {[%clk 0:01:19]}  Rc7 {[%clk 0:00:43]} 31. Qa6 {[%clk 0:01:11]}  Ra7 {[%clk 0:00:33]} 32. Qb6 {[%clk 0:01:12]}  Rc7 {[%clk 0:00:32]} 33. Kf2 {[%clk 0:01:12]}  Rc8 {[%clk 0:00:30]} 34. Rb7 {[%clk 0:01:12]}  Qe8 {[%clk 0:00:20]} 35. Qxd6 {[%clk 0:01:11]}  Kf8 {[%clk 0:00:18]} 36. Qb6 {[%clk 0:01:02]}  Ra8 {[%clk 0:00:10]} 37. d6 {[%clk 0:01:02]}  e5 {[%clk 0:00:06]} 38. d7 {[%clk 0:01:01]}  Qe7 {[%clk 0:00:05]} 39. Rb8+ {[%clk 0:00:56]}  Rxb8 {[%clk 0:00:06]} 40. Qxb8+ {[%clk 0:00:57]}  Kf7 {[%clk 0:00:06]} 41. d8=Q {[%clk 0:00:57]} 1-0


[Site "https://www.chess.com"]

[Event "Titled Tuesday Blitz February 14 Early 2023"]
[White "Hansen, Sune Berg"]
[Black "Jimenez Almeida, Luis David"]
[WhiteFideId "1400266"]
[BlackFideId "22242244"]
[WhiteElo "2517"]
[BlackElo "2242"]
[Result "1-0"]
[Round "05"]
[TimeControl "180+2"]
[Date "2023.02.15"]
[WhiteClock "0:00:53"]
[BlackClock "0:00:19"]

1. e4 {[%clk 0:03:00]}  c6 {[%clk 0:02:59]} 2. d4 {[%clk 0:02:59]}  Na6 {[%clk 0:02:59]} 3. Nd2 {[%clk 0:02:57]}  Nc7 {[%clk 0:02:59]} 4. Bd3 {[%clk 0:02:55]}  g6 {[%clk 0:02:59]} 5. Ne2 {[%clk 0:02:53]}  Bg7 {[%clk 0:03:00]} 6. c3 {[%clk 0:02:52]}  d6 {[%clk 0:03:00]} 7. Nf3 {[%clk 0:02:48]}  Nf6 {[%clk 0:03:00]} 8. h3 {[%clk 0:02:44]}  O-O {[%clk 0:02:59]} 9. Ng3 {[%clk 0:02:44]}  Re8 {[%clk 0:02:57]} 10. O-O {[%clk 0:02:41]}  e5 {[%clk 0:02:57]} 11. Re1 {[%clk 0:02:40]}  Qe7 {[%clk 0:02:56]} 12. Be3 {[%clk 0:02:39]}  a5 {[%clk 0:02:56]} 13. Qd2 {[%clk 0:02:38]}  Be6 {[%clk 0:02:49]} 14. Bh6 {[%clk 0:02:31]}  Nd7 {[%clk 0:02:41]} 15. Bxg7 {[%clk 0:02:08]}  Kxg7 {[%clk 0:02:41]} 16. Bc2 {[%clk 0:02:05]}  h6 {[%clk 0:02:32]} 17. Rad1 {[%clk 0:02:03]}  a4 {[%clk 0:02:18]} 18. Bb1 {[%clk 0:02:02]}  b5 {[%clk 0:01:51]} 19. dxe5 {[%clk 0:01:57]}  dxe5 {[%clk 0:01:52]} 20. Qe3 {[%clk 0:01:46]}  a3 {[%clk 0:01:32]} 21. b3 {[%clk 0:01:43]}  b4 {[%clk 0:01:31]} 22. cxb4 {[%clk 0:01:41]}  Qxb4 {[%clk 0:01:29]} 23. Rc1 {[%clk 0:01:36]}  c5 {[%clk 0:01:24]} 24. Bd3 {[%clk 0:01:34]}  Nb5 {[%clk 0:01:03]} 25. Bxb5 {[%clk 0:01:28]}  Qxb5 {[%clk 0:01:04]} 26. Rc3 {[%clk 0:01:12]}  c4 {[%clk 0:01:02]} 27. Qe2 {[%clk 0:01:11]}  Qb4 {[%clk 0:00:58]} 28. Qd2 {[%clk 0:00:59]}  cxb3 {[%clk 0:00:57]} 29. axb3 {[%clk 0:01:00]}  Nc5 {[%clk 0:00:55]} 30. Nh4 {[%clk 0:00:57]}  Nxb3 {[%clk 0:00:47]} 31. Ngf5+ {[%clk 0:00:57]}  Kf6 {[%clk 0:00:39]} 32. Qxh6 {[%clk 0:00:55]}  Qxc3 {[%clk 0:00:27]} 33. Qg7+ {[%clk 0:00:53]}  Kg5 {[%clk 0:00:27]} 34. Nf3+ {[%clk 0:00:53]}  Qxf3 {[%clk 0:00:21]} 35. gxf3 {[%clk 0:00:53]}  Bxf5 {[%clk 0:00:20]} 36. exf5 {[%clk 0:00:53]}  a2 {[%clk 0:00:20]} 37. h4+ {[%clk 0:00:53]}  Kxf5 {[%clk 0:00:19]} 38. Qxf7# {[%clk 0:00:53]} 1-0


[Site "https://www.chess.com"]

[Event "Titled Tuesday Blitz February 14 Early 2023"]
[White "Liyanage, Ranindu Dilshan"]
[Black "surrenderPLS"]
[WhiteFideId "9915834"]
[WhiteElo "2342"]
[BlackElo "2491"]
[Result "1-0"]
[Round "05"]
[TimeControl "180+2"]
[Date "2023.02.15"]
[WhiteClock "0:00:13"]
[BlackClock "0:00:04"]

1. d4 {[%clk 0:02:53]}  Nf6 {[%clk 0:02:59]} 2. Nc3 {[%clk 0:02:53]}  d5 {[%clk 0:02:59]} 3. Bf4 {[%clk 0:02:54]}  Bf5 {[%clk 0:02:59]} 4. e3 {[%clk 0:02:53]}  e6 {[%clk 0:02:59]} 5. Bd3 {[%clk 0:02:53]}  Bxd3 {[%clk 0:02:57]} 6. cxd3 {[%clk 0:02:53]}  Bd6 {[%clk 0:02:56]} 7. Nge2 {[%clk 0:02:52]}  O-O {[%clk 0:02:56]} 8. Qb3 {[%clk 0:02:52]}  Nc6 {[%clk 0:02:51]} 9. Qxb7 {[%clk 0:02:41]}  Nb4 {[%clk 0:02:51]} 10. O-O {[%clk 0:01:38]}  Rb8 {[%clk 0:02:05]} 11. Qxa7 {[%clk 0:01:36]}  Ra8 {[%clk 0:02:05]} 12. Qb7 {[%clk 0:01:27]}  Rb8 {[%clk 0:02:00]} 13. Qa7 {[%clk 0:01:25]}  Nxd3 {[%clk 0:01:55]} 14. b3 {[%clk 0:01:00]}  Ra8 {[%clk 0:01:29]} 15. Qb7 {[%clk 0:00:58]}  Nxf4 {[%clk 0:01:10]} 16. Nxf4 {[%clk 0:00:50]}  Bxf4 {[%clk 0:00:19]} 17. exf4 {[%clk 0:00:51]}  Qd6 {[%clk 0:00:19]} 18. Nb5 {[%clk 0:00:51]}  Qxf4 {[%clk 0:00:19]} 19. Qxc7 {[%clk 0:00:51]}  Qh6 {[%clk 0:00:07]} 20. a4 {[%clk 0:00:47]}  Ne4 {[%clk 0:00:06]} 21. Qc1 {[%clk 0:00:39]}  Qg6 {[%clk 0:00:05]} 22. Qe3 {[%clk 0:00:37]}  Rac8 {[%clk 0:00:04]} 23. Rfc1 {[%clk 0:00:35]}  f5 {[%clk 0:00:05]} 24. Qf4 {[%clk 0:00:30]}  Qf6 {[%clk 0:00:02]} 25. f3 {[%clk 0:00:24]}  g5 {[%clk 0:00:02]} 26. Qe5 {[%clk 0:00:24]}  Qxe5 {[%clk 0:00:02]} 27. dxe5 {[%clk 0:00:18]}  Nd2 {[%clk 0:00:03]} 28. Nd4 {[%clk 0:00:12]}  Rxc1+ {[%clk 0:00:01]} 29. Rxc1 {[%clk 0:00:12]}  Rb8 {[%clk 0:00:02]} 30. a5 {[%clk 0:00:12]}  Nxb3 {[%clk 0:00:02]} 31. Nxb3 {[%clk 0:00:12]}  Rxb3 {[%clk 0:00:03]} 32. Ra1 {[%clk 0:00:11]}  Rb7 {[%clk 0:00:03]} 33. a6 {[%clk 0:00:12]}  Ra7 {[%clk 0:00:04]} 34. Kf2 {[%clk 0:00:13]}  Kf7 {[%clk 0:00:05]} 35. Ke3 {[%clk 0:00:13]}  Ke7 {[%clk 0:00:05]} 36. Kd4 {[%clk 0:00:14]}  Kd7 {[%clk 0:00:06]} 37. Kc5 {[%clk 0:00:14]}  Kc7 {[%clk 0:00:07]} 38. Ra2 {[%clk 0:00:12]}  Ra8 {[%clk 0:00:07]} 39. a7 {[%clk 0:00:12]}  Kb7 {[%clk 0:00:07]} 40. Kd6 {[%clk 0:00:11]}  Rxa7 {[%clk 0:00:06]} 41. Rxa7+ {[%clk 0:00:11]}  Kxa7 {[%clk 0:00:07]} 42. Kxe6 {[%clk 0:00:12]}  d4 {[%clk 0:00:07]} 43. Kxf5 {[%clk 0:00:12]}  d3 {[%clk 0:00:07]} 44. e6 {[%clk 0:00:13]}  d2 {[%clk 0:00:08]} 45. e7 {[%clk 0:00:13]}  d1=Q {[%clk 0:00:09]} 46. e8=Q {[%clk 0:00:14]}  Qd2 {[%clk 0:00:07]} 47. Qe7+ {[%clk 0:00:13]}  Kb6 {[%clk 0:00:06]} 48. Qf6+ {[%clk 0:00:13]}  Kc7 {[%clk 0:00:05]} 49. Qxg5 {[%clk 0:00:12]}  Qd5+ {[%clk 0:00:04]} 50. Kg4 {[%clk 0:00:13]}  Qa2 {[%clk 0:00:03]} 51. Qf4+ {[%clk 0:00:12]}  Kd7 {[%clk 0:00:03]} 52. Kh3 {[%clk 0:00:12]}  Ke7 {[%clk 0:00:03]} 53. Qe5+ {[%clk 0:00:12]}  Kf7 {[%clk 0:00:03]} 54. Qh5+ {[%clk 0:00:13]}  Kg7 {[%clk 0:00:04]} 55. Qg4+ {[%clk 0:00:14]}  Kh8 {[%clk 0:00:04]} 56. g3 {[%clk 0:00:14]}  Qb2 {[%clk 0:00:04]} 57. f4 {[%clk 0:00:14]}  Qc1 {[%clk 0:00:04]} 58. Qf5 {[%clk 0:00:13]}  Qf1+ {[%clk 0:00:04]} 59. Kh4 {[%clk 0:00:13]}  Qe2 {[%clk 0:00:04]} 60. Qf8# {[%clk 0:00:13]} 1-0


[Site "https://www.chess.com"]

[Event "Titled Tuesday Blitz February 14 Early 2023"]
[White "Kochetov, Andrey"]
[Black "Klabis, Rokas"]
[WhiteFideId "24130532"]
[BlackFideId "12805246"]
[WhiteElo "2165"]
[BlackElo "2415"]
[Result "0-1"]
[Round "05"]
[TimeControl "180+2"]
[Date "2023.02.15"]
[WhiteClock "0:00:02"]
[BlackClock "0:00:21"]

1. e4 {[%clk 0:03:00]}  e5 {[%clk 0:03:00]} 2. Nf3 {[%clk 0:03:00]}  Nc6 {[%clk 0:03:00]} 3. Bc4 {[%clk 0:03:00]}  Nf6 {[%clk 0:02:59]} 4. d3 {[%clk 0:02:59]}  Be7 {[%clk 0:02:59]} 5. O-O {[%clk 0:02:58]}  O-O {[%clk 0:02:59]} 6. c3 {[%clk 0:02:58]}  d6 {[%clk 0:03:00]} 7. Re1 {[%clk 0:02:55]}  h6 {[%clk 0:03:00]} 8. Nbd2 {[%clk 0:02:55]}  Nh7 {[%clk 0:03:00]} 9. Nf1 {[%clk 0:02:49]}  a6 {[%clk 0:03:00]} 10. Bb3 {[%clk 0:02:49]}  Ng5 {[%clk 0:03:00]} 11. Ng3 {[%clk 0:02:47]}  Nxf3+ {[%clk 0:03:00]} 12. Qxf3 {[%clk 0:02:47]}  Bg5 {[%clk 0:03:01]} 13. Be3 {[%clk 0:02:45]}  Be6 {[%clk 0:02:59]} 14. Rad1 {[%clk 0:02:38]}  Bxe3 {[%clk 0:02:38]} 15. Rxe3 {[%clk 0:02:36]}  Ne7 {[%clk 0:02:38]} 16. d4 {[%clk 0:02:27]}  Qc8 {[%clk 0:02:34]} 17. Bxe6 {[%clk 0:02:17]}  Qxe6 {[%clk 0:02:35]} 18. a3 {[%clk 0:02:03]}  a5 {[%clk 0:02:24]} 19. Nf5 {[%clk 0:01:59]}  Nxf5 {[%clk 0:02:20]} 20. exf5 {[%clk 0:01:58]}  Qb3 {[%clk 0:02:07]} 21. f6 {[%clk 0:01:25]}  g6 {[%clk 0:02:07]} 22. dxe5 {[%clk 0:01:21]}  dxe5 {[%clk 0:02:07]} 23. Rxe5 {[%clk 0:01:09]}  Qxb2 {[%clk 0:02:08]} 24. h4 {[%clk 0:00:59]}  Ra6 {[%clk 0:01:59]} 25. h5 {[%clk 0:00:35]}  Qc2 {[%clk 0:01:53]} 26. hxg6 {[%clk 0:00:28]}  fxg6 {[%clk 0:01:16]} 27. Rd7 {[%clk 0:00:05]}  Raxf6 {[%clk 0:01:09]} 28. Qd5+ {[%clk 0:00:02]}  R6f7 {[%clk 0:01:10]} 29. f3 {[%clk 0:00:01]}  Qc1+ {[%clk 0:01:08]} 30. Kh2 {[%clk 0:00:01]}  Qf4+ {[%clk 0:01:08]} 31. Kg1 {[%clk 0:00:01]}  c6 {[%clk 0:00:53]} 32. Qe6 {[%clk 0:00:01]}  Kg7 {[%clk 0:00:51]} 33. Rxf7+ {[%clk 0:00:01]}  Rxf7 {[%clk 0:00:52]} 34. Qd6 {[%clk 0:00:01]}  a4 {[%clk 0:00:48]} 35. Qe6 {[%clk 0:00:01]}  Qc1+ {[%clk 0:00:46]} 36. Kh2 {[%clk 0:00:01]}  Qd2 {[%clk 0:00:42]} 37. Re4 {[%clk 0:00:01]}  Qd7 {[%clk 0:00:41]} 38. Qc4 {[%clk 0:00:01]}  Qd6+ {[%clk 0:00:40]} 39. Kh1 {[%clk 0:00:01]}  b5 {[%clk 0:00:41]} 40. Qf1 {[%clk 0:00:01]}  Re7 {[%clk 0:00:40]} 41. Rg4 {[%clk 0:00:01]}  Qd2 {[%clk 0:00:38]} 42. Re4 {[%clk 0:00:01]}  Rxe4 {[%clk 0:00:36]} 43. fxe4 {[%clk 0:00:02]}  Qxc3 {[%clk 0:00:36]} 44. Qd1 {[%clk 0:00:03]}  h5 {[%clk 0:00:35]} 45. Qd7+ {[%clk 0:00:03]}  Kh6 {[%clk 0:00:35]} 46. Qe8 {[%clk 0:00:03]}  Qc1+ {[%clk 0:00:35]} 47. Kh2 {[%clk 0:00:03]}  Qf4+ {[%clk 0:00:35]} 48. Kh1 {[%clk 0:00:04]}  Qf6 {[%clk 0:00:35]} 49. e5 {[%clk 0:00:03]}  Qh4+ {[%clk 0:00:33]} 50. Kg1 {[%clk 0:00:04]}  Qd4+ {[%clk 0:00:32]} 51. Kh1 {[%clk 0:00:03]}  Kg5 {[%clk 0:00:27]} 52. Qe7+ {[%clk 0:00:03]}  Kg4 {[%clk 0:00:27]} 53. Qf6 {[%clk 0:00:02]}  Qe4 {[%clk 0:00:21]} 54. Qf3+ {[%clk 0:00:01]}  Qxf3 {[%clk 0:00:20]} 55. gxf3+ {[%clk 0:00:02]}  Kf5 {[%clk 0:00:21]} 56. f4 {[%clk 0:00:02]}  g5 {[%clk 0:00:21]} 0-1


[Site "https://www.chess.com"]

[Event "Titled Tuesday Blitz February 14 Early 2023"]
[White "Dragomirescu, Angela"]
[Black "Aggelis, Nikolaos"]
[WhiteFideId "1209914"]
[BlackFideId "4213220"]
[WhiteElo "2130"]
[BlackElo "2270"]
[Result "0-1"]
[Round "05"]
[TimeControl "180+2"]
[Date "2023.02.15"]
[WhiteClock "0:00:22"]
[BlackClock "0:00:19"]

1. e4 {[%clk 0:03:00]}  c6 {[%clk 0:02:53]} 2. d4 {[%clk 0:03:00]}  d5 {[%clk 0:02:53]} 3. e5 {[%clk 0:03:01]}  c5 {[%clk 0:02:49]} 4. dxc5 {[%clk 0:03:00]}  e6 {[%clk 0:02:44]} 5. Nf3 {[%clk 0:02:59]}  Bxc5 {[%clk 0:02:44]} 6. a3 {[%clk 0:03:00]}  a6 {[%clk 0:02:41]} 7. Bd3 {[%clk 0:03:00]}  Ne7 {[%clk 0:02:40]} 8. O-O {[%clk 0:03:00]}  Ng6 {[%clk 0:02:40]} 9. Re1 {[%clk 0:02:59]}  Nc6 {[%clk 0:02:39]} 10. b4 {[%clk 0:02:59]}  Ba7 {[%clk 0:02:40]} 11. c4 {[%clk 0:02:55]}  dxc4 {[%clk 0:02:38]} 12. Bxc4 {[%clk 0:02:36]}  Qxd1 {[%clk 0:02:38]} 13. Rxd1 {[%clk 0:02:37]}  Ngxe5 {[%clk 0:02:38]} 14. Nxe5 {[%clk 0:02:38]}  Nxe5 {[%clk 0:02:39]} 15. Be2 {[%clk 0:02:39]}  Nc6 {[%clk 0:02:13]} 16. Bb2 {[%clk 0:02:32]}  f6 {[%clk 0:02:12]} 17. Nd2 {[%clk 0:02:06]}  Nd4 {[%clk 0:02:06]} 18. Bf1 {[%clk 0:01:21]}  e5 {[%clk 0:02:05]} 19. Rac1 {[%clk 0:01:17]}  Bg4 {[%clk 0:01:48]} 20. Re1 {[%clk 0:01:16]}  Rc8 {[%clk 0:01:44]} 21. h3 {[%clk 0:00:54]}  Be6 {[%clk 0:01:39]} 22. Kh1 {[%clk 0:00:53]}  Kd7 {[%clk 0:01:37]} 23. Ne4 {[%clk 0:00:49]}  Rxc1 {[%clk 0:01:32]} 24. Rxc1 {[%clk 0:00:48]}  Rc8 {[%clk 0:01:33]} 25. Nc5+ {[%clk 0:00:22]}  Bxc5 {[%clk 0:01:32]} 26. bxc5 {[%clk 0:00:23]}  Kc6 {[%clk 0:01:18]} 27. f4 {[%clk 0:00:22]}  Re8 {[%clk 0:00:52]} 28. fxe5 {[%clk 0:00:19]}  fxe5 {[%clk 0:00:53]} 29. Re1 {[%clk 0:00:20]}  Bd7 {[%clk 0:00:20]} 30. Bd3 {[%clk 0:00:20]}  Kxc5 {[%clk 0:00:19]} 31. Bxh7 {[%clk 0:00:21]}  Kd6 {[%clk 0:00:19]} 32. Rd1 {[%clk 0:00:17]}  Kc5 {[%clk 0:00:19]} 33. a4 {[%clk 0:00:18]}  Bxa4 {[%clk 0:00:19]} 34. Rc1+ {[%clk 0:00:18]}  Kd6 {[%clk 0:00:18]} 35. Rb1 {[%clk 0:00:18]}  Bc6 {[%clk 0:00:18]} 36. Ba3+ {[%clk 0:00:19]}  Kd7 {[%clk 0:00:18]} 37. Re1 {[%clk 0:00:19]}  b5 {[%clk 0:00:17]} 38. Bb2 {[%clk 0:00:20]}  a5 {[%clk 0:00:17]} 39. Bg6 {[%clk 0:00:20]}  Re7 {[%clk 0:00:17]} 40. Rd1 {[%clk 0:00:20]}  Kd6 {[%clk 0:00:17]} 41. Bxd4 {[%clk 0:00:19]}  exd4 {[%clk 0:00:18]} 42. Rxd4+ {[%clk 0:00:19]}  Kc5 {[%clk 0:00:18]} 43. Rg4 {[%clk 0:00:20]}  b4 {[%clk 0:00:18]} 44. h4 {[%clk 0:00:20]}  a4 {[%clk 0:00:19]} 45. h5 {[%clk 0:00:21]}  b3 {[%clk 0:00:18]} 46. Rg5+ {[%clk 0:00:22]}  Kb4 {[%clk 0:00:18]} 47. Kh2 {[%clk 0:00:23]}  a3 {[%clk 0:00:18]} 48. Rg4+ {[%clk 0:00:23]}  Kc3 {[%clk 0:00:18]} 49. Rg3+ {[%clk 0:00:23]}  Kb4 {[%clk 0:00:19]} 50. Rg4+ {[%clk 0:00:23]}  Kc5 {[%clk 0:00:18]} 51. Rg3 {[%clk 0:00:24]}  Rb7 {[%clk 0:00:17]} 52. Rc3+ {[%clk 0:00:23]}  Kd6 {[%clk 0:00:17]} 53. Rxc6+ {[%clk 0:00:19]}  Kxc6 {[%clk 0:00:18]} 54. Be4+ {[%clk 0:00:20]}  Kc7 {[%clk 0:00:18]} 55. Bxb7 {[%clk 0:00:21]}  Kxb7 {[%clk 0:00:19]} 56. h6 {[%clk 0:00:22]} 0-1


[Site "https://www.chess.com"]

[Event "Titled Tuesday Blitz February 14 Early 2023"]
[White "Jakubowski, Krzysztof"]
[Black "Baches Garcia, Guillermo"]
[WhiteFideId "1112848"]
[BlackFideId "2209764"]
[WhiteElo "2486"]
[BlackElo "2327"]
[Result "1-0"]
[Round "05"]
[TimeControl "180+2"]
[Date "2023.02.15"]
[WhiteClock "0:00:15"]
[BlackClock "0:00:01"]

1. e4 {[%clk 0:02:54]}  c5 {[%clk 0:03:00]} 2. Nf3 {[%clk 0:02:52]}  d6 {[%clk 0:03:00]} 3. d4 {[%clk 0:02:51]}  cxd4 {[%clk 0:03:01]} 4. Nxd4 {[%clk 0:02:50]}  Nf6 {[%clk 0:03:02]} 5. Nc3 {[%clk 0:02:49]}  Nc6 {[%clk 0:03:02]} 6. Bg5 {[%clk 0:02:48]}  e6 {[%clk 0:03:02]} 7. Qd2 {[%clk 0:02:47]}  h6 {[%clk 0:03:03]} 8. Be3 {[%clk 0:02:38]}  Ng4 {[%clk 0:03:03]} 9. Nxc6 {[%clk 0:02:36]}  bxc6 {[%clk 0:03:02]} 10. Bf4 {[%clk 0:02:36]}  e5 {[%clk 0:03:03]} 11. Bg3 {[%clk 0:02:35]}  Be7 {[%clk 0:03:03]} 12. Bc4 {[%clk 0:02:27]}  O-O {[%clk 0:03:02]} 13. O-O {[%clk 0:02:26]}  Bg5 {[%clk 0:02:56]} 14. Qe2 {[%clk 0:02:23]}  Bf4 {[%clk 0:02:46]} 15. Rad1 {[%clk 0:02:12]}  Qe7 {[%clk 0:02:24]} 16. Rd3 {[%clk 0:02:07]}  Be6 {[%clk 0:02:10]} 17. Bb3 {[%clk 0:02:00]}  Rad8 {[%clk 0:01:55]} 18. Rfd1 {[%clk 0:01:56]}  Bg5 {[%clk 0:01:30]} 19. h3 {[%clk 0:01:49]}  Nf6 {[%clk 0:01:25]} 20. Rf3 {[%clk 0:01:37]}  h5 {[%clk 0:01:12]} 21. Qa6 {[%clk 0:01:31]}  h4 {[%clk 0:01:07]} 22. Bh2 {[%clk 0:01:30]}  Rc8 {[%clk 0:00:48]} 23. Rfd3 {[%clk 0:01:24]}  Rfd8 {[%clk 0:00:48]} 24. Qa5 {[%clk 0:01:19]}  Nh5 {[%clk 0:00:41]} 25. Qa3 {[%clk 0:01:04]}  c5 {[%clk 0:00:22]} 26. Bd5 {[%clk 0:00:43]}  Nf4 {[%clk 0:00:20]} 27. Rf3 {[%clk 0:00:38]}  g6 {[%clk 0:00:18]} 28. b3 {[%clk 0:00:37]}  Kg7 {[%clk 0:00:18]} 29. Qa6 {[%clk 0:00:37]}  Bd7 {[%clk 0:00:13]} 30. Bc4 {[%clk 0:00:33]}  Qf6 {[%clk 0:00:11]} 31. Bxf4 {[%clk 0:00:29]}  Bxf4 {[%clk 0:00:09]} 32. Rxd6 {[%clk 0:00:26]}  Be6 {[%clk 0:00:09]} 33. Rfd3 {[%clk 0:00:21]}  Bxc4 {[%clk 0:00:05]} 34. Rxf6 {[%clk 0:00:18]}  Bxa6 {[%clk 0:00:04]} 35. Rxa6 {[%clk 0:00:19]}  c4 {[%clk 0:00:02]} 36. bxc4 {[%clk 0:00:18]}  Rd4 {[%clk 0:00:01]} 37. Ra4 {[%clk 0:00:15]} 1-0


[Site "https://www.chess.com"]

[Event "Titled Tuesday Blitz February 14 Early 2023"]
[White "Manukian, Artak"]
[Black "Panesar Vedant"]
[WhiteFideId "13301373"]
[BlackFideId "35033018"]
[WhiteElo "2196"]
[BlackElo "2387"]
[Result "0-1"]
[Round "05"]
[TimeControl "180+2"]
[Date "2023.02.15"]
[WhiteClock "0:00:23"]
[BlackClock "0:00:11"]

1. e4 {[%clk 0:02:54]}  e5 {[%clk 0:02:58]} 2. Nf3 {[%clk 0:02:54]}  Nc6 {[%clk 0:02:57]} 3. d4 {[%clk 0:02:54]}  exd4 {[%clk 0:02:58]} 4. Nxd4 {[%clk 0:02:55]}  Nf6 {[%clk 0:02:59]} 5. Nxc6 {[%clk 0:02:56]}  bxc6 {[%clk 0:02:58]} 6. e5 {[%clk 0:02:56]}  Qe7 {[%clk 0:02:59]} 7. Qe2 {[%clk 0:02:57]}  Nd5 {[%clk 0:02:58]} 8. c4 {[%clk 0:02:58]}  Ba6 {[%clk 0:02:55]} 9. b3 {[%clk 0:02:59]}  g6 {[%clk 0:02:55]} 10. g3 {[%clk 0:02:58]}  Bg7 {[%clk 0:02:55]} 11. Bb2 {[%clk 0:02:58]}  O-O-O {[%clk 0:02:55]} 12. Bg2 {[%clk 0:02:57]}  Rde8 {[%clk 0:02:55]} 13. O-O {[%clk 0:02:58]}  Bxe5 {[%clk 0:02:55]} 14. Qxe5 {[%clk 0:02:58]}  Qxe5 {[%clk 0:02:56]} 15. Bxe5 {[%clk 0:02:58]}  Rxe5 {[%clk 0:02:57]} 16. cxd5 {[%clk 0:02:59]}  Bxf1 {[%clk 0:02:57]} 17. Kxf1 {[%clk 0:02:59]}  cxd5 {[%clk 0:02:58]} 18. Nc3 {[%clk 0:03:00]}  c6 {[%clk 0:02:58]} 19. Rc1 {[%clk 0:03:00]}  Kb7 {[%clk 0:02:56]} 20. Na4 {[%clk 0:02:59]}  Rhe8 {[%clk 0:02:54]} 21. Nc5+ {[%clk 0:02:58]}  Kc7 {[%clk 0:02:54]} 22. Bf3 {[%clk 0:02:57]}  R5e7 {[%clk 0:02:50]} 23. b4 {[%clk 0:02:56]}  Kd6 {[%clk 0:02:50]} 24. Nb7+ {[%clk 0:02:53]}  Kc7 {[%clk 0:02:50]} 25. Nc5 {[%clk 0:02:54]}  h5 {[%clk 0:02:49]} 26. h4 {[%clk 0:02:53]}  Kd6 {[%clk 0:02:49]} 27. Nb7+ {[%clk 0:02:53]}  Kc7 {[%clk 0:02:50]} 28. Nc5 {[%clk 0:02:53]}  Re5 {[%clk 0:02:48]} 29. Nd3 {[%clk 0:02:48]}  Rf5 {[%clk 0:02:47]} 30. Nf4 {[%clk 0:02:40]}  Kd6 {[%clk 0:02:44]} 31. Rc5 {[%clk 0:02:33]}  Rb8 {[%clk 0:02:39]} 32. a3 {[%clk 0:02:33]}  Re5 {[%clk 0:02:38]} 33. Nd3 {[%clk 0:02:29]}  Re7 {[%clk 0:02:36]} 34. Ra5 {[%clk 0:02:29]}  Ra8 {[%clk 0:02:25]} 35. b5 {[%clk 0:02:21]}  Kc7 {[%clk 0:02:21]} 36. a4 {[%clk 0:02:17]}  Ree8 {[%clk 0:02:17]} 37. Nb4 {[%clk 0:02:16]}  Kb6 {[%clk 0:01:57]} 38. Ra6+ {[%clk 0:02:12]}  Kc5 {[%clk 0:01:58]} 39. Nd3+ {[%clk 0:02:04]}  Kd4 {[%clk 0:01:55]} 40. Nf4 {[%clk 0:02:03]}  Rec8 {[%clk 0:01:44]} 41. Ke2 {[%clk 0:01:45]}  Rc7 {[%clk 0:01:28]} 42. Kd2 {[%clk 0:01:43]}  Rb8 {[%clk 0:01:25]} 43. Be2 {[%clk 0:01:41]}  Rb6 {[%clk 0:01:24]} 44. Ra5 {[%clk 0:01:25]}  c5 {[%clk 0:01:23]} 45. Bf3 {[%clk 0:01:19]}  Rd6 {[%clk 0:01:08]} 46. Ra6 {[%clk 0:01:13]}  Rxa6 {[%clk 0:01:08]} 47. bxa6 {[%clk 0:01:14]}  Rc6 {[%clk 0:01:04]} 48. Bxd5 {[%clk 0:01:14]}  Rxa6 {[%clk 0:01:05]} 49. Bxf7 {[%clk 0:01:14]}  c4 {[%clk 0:00:57]} 50. Bxg6 {[%clk 0:01:11]}  Rxa4 {[%clk 0:00:50]} 51. Ne2+ {[%clk 0:00:59]}  Kc5 {[%clk 0:00:50]} 52. Bxh5 {[%clk 0:00:58]}  d5 {[%clk 0:00:50]} 53. Bg6 {[%clk 0:00:57]}  d4 {[%clk 0:00:50]} 54. h5 {[%clk 0:00:56]}  Ra2+ {[%clk 0:00:50]} 55. Kd1 {[%clk 0:00:53]}  Ra1+ {[%clk 0:00:39]} 56. Kd2 {[%clk 0:00:53]}  c3+ {[%clk 0:00:12]} 57. Nxc3 {[%clk 0:00:49]}  dxc3+ {[%clk 0:00:12]} 58. Kxc3 {[%clk 0:00:50]}  Rf1 {[%clk 0:00:12]} 59. h6 {[%clk 0:00:41]}  Rxf2 {[%clk 0:00:13]} 60. h7 {[%clk 0:00:39]}  Rh2 {[%clk 0:00:12]} 61. Kd3 {[%clk 0:00:35]}  Kd6 {[%clk 0:00:11]} 62. Ke4 {[%clk 0:00:33]}  Ke6 {[%clk 0:00:12]} 63. Kf4 {[%clk 0:00:33]}  Kf6 {[%clk 0:00:12]} 64. Bd3 {[%clk 0:00:29]}  a5 {[%clk 0:00:11]} 65. g4 {[%clk 0:00:29]}  a4 {[%clk 0:00:11]} 66. g5+ {[%clk 0:00:30]}  Kg7 {[%clk 0:00:12]} 67. Ke5 {[%clk 0:00:24]}  a3 {[%clk 0:00:12]} 68. Bc4 {[%clk 0:00:23]}  Rxh7 {[%clk 0:00:10]} 69. Kd4 {[%clk 0:00:22]}  Rh4+ {[%clk 0:00:10]} 70. Kc3 {[%clk 0:00:22]}  Rxc4+ {[%clk 0:00:10]} 71. Kxc4 {[%clk 0:00:23]}  a2 {[%clk 0:00:11]} 0-1


[Site "https://www.chess.com"]